bitfinex-derivatives/quotes_BTCF0:USTF0_20250213
["timestamp","ask_amount","ask_price","bid_price","bid_amount"]
[1739408453285,0.4454304,97876.0,97875.0,0.26066128]
[1739408454969,0.2411,97876.0,97867.0,0.00015326]
[1739408455176,0.204365,97860.0,97856.0,0.36830358]
[1739408455377,0.2043688,97858.0,97856.0,0.36746358]
[1739408455585,0.45439021,97858.0,97856.0,0.36746358]
[1739408455885,0.2043861,97850.0,97838.0,0.0627]
[1739408456076,0.07906168,97848.0,97830.0,0.43986168]
[1739408456275,0.23,97848.0,97847.0,0.204391]
[1739408466186,0.00015326,97854.0,97853.0,0.2043785]
[1739408466687,0.07015326,97854.0,97853.0,0.2043785]
[1739408467181,0.07015326,97854.0,97853.0,0.21477336]
[1739408467988,0.07015326,97854.0,97853.0,0.21477336]
[1739408469681,0.07015326,97854.0,97853.0,0.2043785]
[1739408470287,0.07015326,97854.0,97853.0,0.21465102]
[1739408472091,0.07015326,97854.0,97853.0,0.2043785]
[1739408477690,0.00015326,97854.0,97853.0,0.2043785]
[1739408481083,0.00015326,97854.0,97853.0,0.22035676]
[1739408483188,0.00015326,97854.0,97853.0,0.22035631]
[1739408486191,0.00015326,97854.0,97853.0,0.24592067]
[1739408486390,0.00015326,97854.0,97853.0,0.60672067]
[1739408487497,0.00015326,97854.0,97853.0,0.60672039]
[1739408489502,0.00015326,97854.0,97853.0,0.60671909]
[1739408489894,0.00015326,97854.0,97853.0,0.5651785]
[1739408490195,0.00015326,97854.0,97853.0,0.60671906]
[1739408494395,0.00015326,97854.0,97853.0,0.60671932]
[1739408496315,0.00015326,97854.0,97853.0,0.58115574]
[1739408497908,0.00015326,97854.0,97853.0,0.58115614]
[1739408498108,0.08005493,97854.0,97853.0,0.5651785]
[1739408500206,0.08005493,97854.0,97853.0,0.58115735]
[1739408500606,0.08005493,97854.0,97853.0,0.22035735]
[1739408504115,0.08005493,97854.0,97853.0,0.22035734]
[1739408506207,0.08005493,97854.0,97853.0,0.22035695]
[1739408506617,0.03035326,97854.0,97853.0,0.22035695]
[1739408507312,0.00015326,97854.0,97853.0,0.22035695]
[1739408514216,0.00015326,97854.0,97853.0,0.2043785]
[1739408515325,0.04985584,97854.0,97853.0,0.22035628]
[1739408515515,0.04985584,97854.0,97853.0,0.22135628]
[1739408515918,0.04985584,97854.0,97853.0,0.2053785]
[1739408516118,0.04985584,97854.0,97853.0,0.22135628]
[1739408520323,0.04985584,97854.0,97853.0,0.2053785]
[1739408520720,0.04985584,97854.0,97824.0,0.4119096]
[1739408520721,0.26985584,97854.0,97824.0,0.4119096]
[1739408520927,0.3608,97848.0,97844.0,0.2043953]
[1739408521122,0.0332,97847.0,97844.0,0.2043953]
[1739408521325,0.2532,97847.0,97845.0,0.2043944]
[1739408522824,0.26345214,97847.0,97845.0,0.2043944]
[1739408523428,0.26345214,97847.0,97845.0,0.2063944]
[1739408523826,0.2532,97847.0,97845.0,0.2063944]
[1739408524027,0.22,97847.0,97845.0,0.2063944]
[1739408530731,0.0313,97853.0,97845.0,0.002]
[1739408530936,0.0313,97853.0,97850.0,0.204383]
[1739408531138,0.0313,97853.0,97851.0,0.2043818]
[1739408532730,0.0313,97853.0,97851.0,0.2053818]
[1739408533933,0.0313,97853.0,97851.0,0.001]
[1739408534140,0.2043946,97846.0,97839.0,0.5652058]
[1739408534447,0.2044028,97842.0,97839.0,0.5652058]
[1739408534747,0.4344028,97842.0,97839.0,0.5652058]
[1739408535347,0.4344028,97842.0,97839.0,0.5692058]
[1739408535548,0.4344028,97842.0,97840.0,0.2044053]
[1739408535946,0.23,97842.0,97840.0,0.2044053]
[1739408536847,0.23,97842.0,97840.0,0.2074053]
[1739408539551,0.24050464,97842.0,97840.0,0.2074053]
[1739408539944,0.44490744,97842.0,97840.0,0.2074053]
[1739408540344,0.24050464,97842.0,97821.0,0.24486792]
[1739408540539,0.2044149,97836.0,97831.0,0.2044234]
[1739408540747,0.0309,97835.0,97832.0,0.2044203]
[1739408540949,0.2309,97835.0,97822.0,0.01018898]
[1739408541143,0.2309,97835.0,97833.0,0.2044191]
[1739408541856,0.2309,97835.0,97834.0,0.00415326]
[1739408542249,0.2309,97835.0,97834.0,0.00015326]
[1739408542764,0.2309,97835.0,97834.0,0.20457136]
[1739408542952,0.2,97835.0,97834.0,0.20457136]
[1739408546061,0.2,97835.0,97834.0,0.21482696]
[1739408549661,0.2,97835.0,97834.0,0.20457136]
[1739408551164,0.24971389,97835.0,97834.0,0.20457136]
[1739408553763,0.04971389,97835.0,97834.0,0.20457136]
[1739408554862,0.01050464,97842.0,97840.0,0.2044056]
[1739408555058,0.18380305,97844.0,97834.0,0.00015326]
[1739408555258,0.18380305,97844.0,97843.0,0.2043994]
[1739408557070,0.18680305,97844.0,97843.0,0.2043994]
[1739408557871,0.003,97844.0,97843.0,0.2043994]
[1739408558077,0.01343936,97844.0,97843.0,0.2043994]
[1739408558265,0.003,97844.0,97843.0,0.2043994]
[1739408560763,0.003,97844.0,97834.0,0.00015326]
[1739408560970,0.16112336,97844.0,97834.0,0.00015326]
[1739408561169,0.2044103,97839.0,97838.0,0.2044094]
[1739408561566,0.2044127,97837.0,97834.0,0.00015326]
[1739408561767,0.21449749,97837.0,97834.0,0.00015326]
[1739408561966,0.01008479,97837.0,97835.0,0.2044154]
[1739408562159,1.50056001,97839.0,97834.0,0.00015326]
[1739408562364,1.5,97839.0,97838.0,0.2044097]
[1739408563677,0.2044005,97843.0,97841.0,0.2044032]
[1739408564775,0.21464885,97843.0,97841.0,0.2044032]
[1739408565977,0.21664885,97843.0,97841.0,0.2044032]
[1739408566565,0.01224835,97843.0,97841.0,0.2044032]
[1739408568271,0.04971437,97842.0,97841.0,0.2044032]
[1739408569674,0.05171437,97842.0,97841.0,0.2044032]
[1739408574572,0.1592568,97842.0,97841.0,0.2044032]
[1739408579175,0.1992568,97842.0,97841.0,0.2044032]
[1739408581484,0.042,97842.0,97841.0,0.2044032]
[1739408584579,0.041,97842.0,97841.0,0.2044032]
[1739408585075,0.04,97842.0,97841.0,0.2044032]
[1739408585281,0.041,97842.0,97841.0,0.2044032]
[1739408592092,0.001,97842.0,97841.0,0.2044032]
[1739408592297,0.05070858,97842.0,97841.0,0.2044032]
[1739408596295,8e-08,97842.0,97841.0,0.2044032]
[1739408596594,0.00015326,97854.0,97853.0,0.2043785]
[1739408596891,0.00015326,97854.0,97853.0,0.5651785]
[1739408597890,0.00415326,97854.0,97853.0,0.5651785]
[1739408598295,0.00015326,97854.0,97853.0,0.5651785]
[1739408598491,0.00415326,97854.0,97853.0,0.5651785]
[1739408599988,0.00415326,97854.0,97853.0,0.57557596]
[1739408601993,0.00415326,97854.0,97853.0,0.21477596]
[1739408607210,0.21415326,97854.0,97853.0,0.21477596]
[1739408607713,0.21315326,97854.0,97853.0,0.21477596]
[1739408614011,0.21315326,97854.0,97853.0,0.57557596]
[1739408621312,0.2628535,97854.0,97853.0,0.57557596]
[1739408623121,0.2628535,97854.0,97853.0,0.21477596]
[1739408623321,0.2628535,97854.0,97853.0,0.57557596]
[1739408624313,0.2628535,97854.0,97853.0,0.5651785]
[1739408625014,0.2043868,97849.0,97848.0,0.2043879]
[1739408625323,0.4043868,97849.0,97848.0,0.2043879]
[1739408625719,0.2,97849.0,97848.0,0.2043879]
[1739408627524,0.202,97849.0,97848.0,0.2043879]
[1739408628729,0.21209582,97849.0,97848.0,0.2043879]
[1739408631321,0.21209582,97849.0,97841.0,0.01033249]
[1739408631522,0.0334,97848.0,97837.0,0.3608]
[1739408631728,0.22784336,97847.0,97835.0,0.18390428]
[1739408631920,0.2043956,97845.0,97840.0,0.2044041]
[1739408632228,0.4043956,97845.0,97840.0,0.2044041]
[1739408632732,0.7651956,97845.0,97840.0,0.2044041]
[1739408633224,0.7651956,97845.0,97842.0,0.2044]
[1739408633932,0.7651956,97845.0,97843.0,0.2043985]
[1739408636224,0.5608,97845.0,97834.0,0.18405754]
[1739408636422,0.2044063,97840.0,97834.0,0.18405754]
[1739408636623,0.2044063,97840.0,97834.0,0.00015326]
[1739408636624,0.4344063,97840.0,97834.0,0.00015326]
[1739408637519,0.23,97840.0,97838.0,0.2044095]
[1739408639423,0.23,97840.0,97834.0,0.00215326]
[1739408639727,0.23,97840.0,97839.0,0.2044077]
[1739408641329,0.23,97840.0,97839.0,0.2054077]
[1739408641825,0.2044034,97842.0,97841.0,0.2044035]
[1739408644424,0.25411712,97842.0,97841.0,0.2044035]
[1739408646929,0.04971372,97842.0,97841.0,0.2044035]
[1739408648636,0.3608,97845.0,97844.0,0.2043973]
[1739408649929,0.3618,97845.0,97844.0,0.2043973]
[1739408650525,0.001,97845.0,97844.0,0.2043973]
[1739408657725,0.091,97845.0,97844.0,0.5651973]
[1739408657925,0.091,97845.0,97844.0,0.5978973]
[1739408666134,0.14070451,97845.0,97844.0,0.5978973]
[1739408667738,0.05070451,97845.0,97844.0,0.5978973]
[1739408672948,0.001,97845.0,97844.0,0.5978973]
[1739408675244,0.001,97845.0,97844.0,0.5651973]
[1739408679745,0.05070802,97845.0,97844.0,0.5651973]
[1739408687955,0.001,97845.0,97844.0,0.5651973]
[1739408694157,0.001,97845.0,97835.0,0.18390428]
[1739408694158,0.201,97845.0,97839.0,0.2044063]
[1739408694459,0.2044056,97840.0,97839.0,0.2044063]
[1739408694650,0.4044056,97840.0,97839.0,0.2044063]
[1739408695055,0.2,97840.0,97839.0,0.2044063]
[1739408695554,0.2,97840.0,97839.0,0.2054063]
[1739408699563,0.24970849,97840.0,97839.0,0.2054063]
[1739408703456,0.2,97840.0,97839.0,0.2054063]
[1739408704267,0.36095326,97854.0,97848.0,0.2043888]
[1739408705171,1.5,97853.0,97848.0,0.2043888]
[1739408705570,0.36095326,97854.0,97848.0,0.2043888]
[1739408705772,0.37307876,97854.0,97848.0,0.2043888]
[1739408705966,1.87307876,97854.0,97837.0,0.3608]
[1739408706165,0.07906168,97847.0,97837.0,0.3608]
[1739408706768,0.07906168,97847.0,97846.0,0.204393]
[1739408706970,0.002,97853.0,97852.0,0.2043805]
[1739408707874,0.04971069,97853.0,97852.0,0.2043805]
[1739408708086,0.19971069,97853.0,97852.0,0.2043805]
[1739408708460,0.20271069,97853.0,97852.0,0.2043805]
[1739408708775,0.20271069,97853.0,97852.0,0.21460233]
[1739408711667,0.153,97853.0,97852.0,0.21460233]
[1739408712074,0.153,97853.0,97852.0,0.2043805]
[1739408713680,0.153,97853.0,97852.0,0.21442605]
[1739408719982,0.2027002,97853.0,97852.0,0.21442605]
[1739408724187,0.153,97853.0,97852.0,0.21442605]
[1739408724590,0.003,97853.0,97852.0,0.21442605]
[1739408729093,0.003,97853.0,97852.0,0.57522605]
[1739408731483,0.05270051,97853.0,97852.0,0.57522605]
[1739408732595,7e-08,97854.0,97852.0,0.57522605]
[1739408734288,0.03000007,97854.0,97852.0,0.57522605]
[1739408734889,0.03000007,97854.0,97853.0,0.2043784]
[1739408736797,0.03,97854.0,97853.0,0.2043784]
[1739408737604,0.21379374,97854.0,97853.0,0.2043784]
[1739408741406,0.03,97854.0,97853.0,0.2043784]
[1739408742402,1e-07,97854.0,97853.0,0.9259784]
[1739408744499,0.00015268,97863.0,97862.0,0.2043596]
[1739408744797,0.00015268,97863.0,97862.0,0.5651596]
[1739408744798,8e-08,97863.0,97862.0,0.5651596]
[1739408745002,0.01957432,97872.0,97870.0,0.2043429]
[1739408745199,0.07957432,97872.0,97871.0,0.3608]
[1739408747007,0.07957432,97872.0,97871.0,0.3618]
[1739408747791,0.07957432,97872.0,97871.0,0.37193922]
[1739408748597,0.06,97872.0,97871.0,0.37193922]
[1739408755001,0.0328,97879.0,97871.0,0.37193922]
[1739408756508,0.0328,97879.0,97878.0,0.2043262]
[1739408757707,0.0328,97879.0,97878.0,0.2113262]
[1739408759706,0.0328,97879.0,97878.0,0.5721262]
[1739408762310,0.1328,97879.0,97878.0,0.5721262]
[1739408763112,0.1,97879.0,97878.0,0.5721262]
[1739408764411,0.1,97879.0,97878.0,0.58809949]
[1739408766206,0.00153316,97888.0,97886.0,0.2043095]
[1739408766408,0.23153316,97888.0,97887.0,0.3608]
[1739408767209,0.23,97888.0,97887.0,0.3608]
[1739408767408,0.29952,97888.0,97887.0,0.3608]
[1739408768009,0.29952,97888.0,97887.0,0.3678]
[1739408769512,0.5328086,97888.0,97887.0,0.3678]
[1739408769816,0.4632886,97888.0,97887.0,0.3678]
[1739408772318,0.27968519,97888.0,97887.0,0.3678]
[1739408773415,0.27968519,97888.0,97887.0,0.38377273]
[1739408773612,0.27968519,97888.0,97887.0,0.3678]
[1739408775012,0.27968519,97888.0,97887.0,0.38377273]
[1739408775720,0.23,97888.0,97887.0,0.38377273]
[1739408775922,0.23,97888.0,97887.0,0.38377272]
[1739408776124,0.23,97888.0,97887.0,0.3678]
[1739408776318,0.06952,97888.0,97887.0,0.58808012]
[1739408777915,0.06952,97888.0,97887.0,0.58808004]
[1739408778726,0.06952,97888.0,97887.0,0.58807984]
[1739408781625,0.06952,97888.0,97887.0,0.5721074]
[1739408781828,0.0635,97893.0,97892.0,0.204297]
[1739408782027,0.07365055,97893.0,97892.0,0.204297]
[1739408783026,0.07365055,97893.0,97892.0,0.211297]
[1739408787632,0.12333601,97893.0,97892.0,0.211297]
[1739408788538,0.12333601,97893.0,97892.0,0.22726943]
[1739408791150,0.11318546,97893.0,97892.0,0.22726943]
[1739408791528,0.0635,97893.0,97892.0,0.22726943]
[1739408792229,0.25812336,97900.0,97899.0,0.2042824]
[1739408792630,0.1,97900.0,97899.0,0.2042824]
[1739408792830,0.11036036,97900.0,97899.0,0.2042824]
[1739408793536,0.11036036,97900.0,97899.0,0.22725384]
[1739408794737,0.11036036,97900.0,97899.0,0.2112824]
[1739408794937,0.11036036,97900.0,97899.0,0.5720824]
[1739408795134,0.16004395,97900.0,97899.0,0.5720824]
[1739408795643,0.16004395,97900.0,97899.0,0.58805358]
[1739408795839,0.16004395,97900.0,97899.0,0.2112824]
[1739408799745,0.16004395,97900.0,97899.0,0.007]
[1739408808944,0.36182611,97900.0,97899.0,0.007]
[1739408812854,0.16004395,97900.0,97899.0,0.007]
[1739408821353,0.16004395,97900.0,97898.0,0.2042837]
[1739408821658,0.16004395,97900.0,97899.0,0.007]
[1739408822460,0.16004395,97900.0,97898.0,0.2042837]
[1739408822662,0.16004395,97900.0,97898.0,0.2112837]
[1739408823159,0.16004395,97900.0,97899.0,0.007]
[1739408823558,0.16004395,97900.0,97899.0,0.2112824]
[1739408824258,0.11036036,97900.0,97899.0,0.2112824]
[1739408825359,0.11036036,97900.0,97899.0,0.2042824]
[1739408825959,0.11036036,97900.0,97899.0,0.2112824]
[1739408827362,0.35850173,97900.0,97899.0,0.2112824]
[1739408833161,0.34814137,97900.0,97899.0,0.22725421]
[1739408833364,0.34814137,97900.0,97899.0,0.2272533]
[1739408833365,0.21322175,97900.0,97899.0,0.2272533]
[1739408833564,0.07906168,97910.0,97909.0,0.2042616]
[1739408833762,0.23,97910.0,97900.0,0.0616]
[1739408833962,0.23,97910.0,97909.0,0.2042616]
[1739408833963,0.31938629,97910.0,97909.0,0.2042616]
[1739408834163,0.24032461,97910.0,97909.0,0.2042616]
[1739408835368,0.24032461,97910.0,97909.0,0.2112616]
[1739408837471,0.32871854,97910.0,97909.0,0.2112616]
[1739408838176,0.32871854,97910.0,97909.0,0.02297052]
[1739408838767,0.32871854,97910.0,97909.0,0.007]
[1739408839170,0.32871854,97910.0,97909.0,0.02297053]
[1739408840171,0.32871854,97910.0,97909.0,0.007]
[1739408840767,0.31839393,97910.0,97909.0,0.2112616]
[1739408841271,0.31839393,97910.0,97909.0,0.22723168]
[1739408841472,0.31839393,97910.0,97909.0,0.22723024]
[1739408841667,0.31839393,97910.0,97909.0,0.2112616]
[1739408842271,0.051066,97908.0,97883.0,0.00015326]
[1739408842470,0.3608,97884.0,97883.0,0.00015326]
[1739408842666,2.0908,97884.0,97868.0,0.0629]
[1739408842872,0.3608,97874.0,97873.0,0.2043367]
[1739408843069,0.4208,97874.0,97873.0,0.2043367]
[1739408845077,0.4248,97874.0,97873.0,0.2043367]
[1739408848882,0.4248,97874.0,97873.0,0.22031109]
[1739408849179,0.4248,97874.0,97873.0,0.2203109]
[1739408849974,0.064,97874.0,97873.0,0.2203109]
[1739408851474,0.4248,97874.0,97873.0,0.2203109]
[1739408851668,0.4248,97874.0,97873.0,0.22031137]
[1739408851866,0.4248,97874.0,97873.0,0.2043367]
[1739408852579,0.3648,97874.0,97873.0,0.2043367]
[1739408868378,0.004,97874.0,97873.0,0.2043367]
[1739408871385,0.3648,97874.0,97873.0,0.2043367]
[1739408876284,0.41449196,97874.0,97873.0,0.2043367]
[1739408879777,0.05369196,97874.0,97873.0,0.2043367]
[1739408883395,6e-08,97874.0,97873.0,0.2043367]
[1739408884291,0.11236168,97883.0,97868.0,0.30776792]
[1739408884489,0.11236168,97883.0,97882.0,0.2043179]
[1739408884796,0.0333,97883.0,97882.0,0.2043179]
[1739408885794,0.0343,97883.0,97882.0,0.2053179]
[1739408889710,0.061,97883.0,97882.0,0.2053179]
[1739408890398,0.061,97883.0,97882.0,0.2380179]
[1739408898200,0.061,97883.0,97882.0,0.2053179]
[1739408899207,0.0711861,97883.0,97882.0,0.2053179]
[1739408899906,0.061,97883.0,97882.0,0.2053179]
[1739408900795,0.11068691,97883.0,97882.0,0.2053179]
[1739408901191,0.12068557,97883.0,97882.0,0.2053179]
[1739408901397,0.11068691,97883.0,97882.0,0.2053179]
[1739408904005,0.061,97883.0,97882.0,0.2053179]
[1739408908207,0.001,97883.0,97882.0,0.2053179]
[1739408914610,0.05068737,97883.0,97882.0,0.2053179]
[1739408920708,7e-08,97883.0,97882.0,0.2053179]
[1739408920914,7e-08,97883.0,97882.0,0.2689179]
[1739408921117,0.0323,97902.0,97892.0,0.2042971]
[1739408921815,0.06015326,97893.0,97892.0,0.2042971]
[1739408922516,0.06015326,97893.0,97892.0,0.2052971]
[1739408922517,0.06115326,97893.0,97892.0,0.2052971]
[1739408924518,0.06115326,97893.0,97892.0,0.21549818]
[1739408927219,0.06115326,97893.0,97892.0,0.2052971]
[1739408931922,0.00115326,97893.0,97892.0,0.2052971]
[1739408939822,0.00115326,97893.0,97892.0,0.21575793]
[1739408947033,6e-08,97893.0,97892.0,0.21575793]
[1739408947234,0.02000006,97893.0,97892.0,0.21575793]
[1739408947423,0.02000006,97893.0,97892.0,0.23172772]
[1739408949133,0.02000006,97893.0,97892.0,0.23172808]
[1739408951430,0.02000006,97893.0,97892.0,0.21575793]
[1739408953338,0.02000006,97893.0,97892.0,0.57655793]
[1739408955440,0.02000006,97893.0,97892.0,0.59252782]
[1739408956553,0.02000006,97893.0,97892.0,0.61807992]
[1739408956749,0.08932006,97893.0,97892.0,0.61807992]
[1739408957149,0.06932006,97893.0,97892.0,0.61807992]
[1739408959256,0.06932006,97893.0,97892.0,0.61807993]
[1739408959854,0.06932006,97893.0,97892.0,0.61907993]
[1739408961660,0.06932006,97893.0,97892.0,0.59352793]
[1739408961958,6e-08,97893.0,97892.0,0.59352793]
[1739408962864,6e-08,97905.0,97892.0,0.38923083]
[1739408963160,0.2,97905.0,97904.0,0.3608]
[1739408963354,0.2,97905.0,97904.0,0.37676835]
[1739408963557,0.00052001,97920.0,97919.0,0.2042408]
[1739408963761,0.0768753,97920.0,97919.0,0.2042408]
[1739408964961,0.0768753,97920.0,97919.0,0.22132489]
[1739408965661,0.00153229,97921.0,97919.0,0.22132489]
[1739408965846,0.14153229,97921.0,97919.0,0.23632489]
[1739408966558,0.04966734,97920.0,97919.0,0.23632489]
[1739408966757,0.16966734,97920.0,97919.0,0.23632489]
[1739408967157,0.16966734,97920.0,97919.0,0.22932489]
[1739408967361,0.16966734,97920.0,97919.0,0.23632489]
[1739408967557,0.16966734,97920.0,97919.0,0.25229099]
[1739408967761,0.16966734,97920.0,97919.0,0.24529099]
[1739408968066,0.16966734,97920.0,97919.0,0.252291]
[1739408969666,0.12,97920.0,97919.0,0.2778386]
[1739408971164,0.12,97920.0,97919.0,0.2718386]
[1739408971963,0.12,97920.0,97919.0,0.2568386]
[1739408972164,0.12,97920.0,97919.0,0.2578386]
[1739408973872,0.00153229,97921.0,97919.0,0.2578386]
[1739408974072,0.00153229,97921.0,97920.0,0.04151371]
[1739408974669,0.10000009,97921.0,97920.0,0.04151371]
[1739408974978,9e-08,97921.0,97920.0,0.04151371]
[1739408975170,9e-08,97921.0,97920.0,0.04251371]
[1739408976368,9e-08,97921.0,97920.0,0.04351371]
[1739408977974,9e-08,97921.0,97920.0,0.04350931]
[1739408983081,0.3608,97943.0,97942.0,0.2041929]
[1739408983381,0.5908,97943.0,97942.0,0.2041929]
[1739408984381,0.5908,97943.0,97942.0,0.2111929]
[1739408984878,0.5908,97943.0,97942.0,0.2261929]
[1739408985581,0.5908,97943.0,97942.0,0.2364993]
[1739408989582,0.23,97943.0,97942.0,0.2364993]
[1739408991882,0.23,97943.0,97942.0,0.24546218]
[1739408992079,0.23,97943.0,97942.0,0.25246218]
[1739409000789,0.0928,97951.0,97950.0,0.2041762]
[1739409001085,0.0928,97951.0,97943.0,0.2041891]
[1739409001086,0.2041762,97950.0,97943.0,0.2041891]
[1739409001285,0.3608,97944.0,97943.0,0.2041891]
[1739409001480,0.5508,97944.0,97942.0,0.022]
[1739409001685,0.07084,97943.0,97942.0,0.022]
[1739409001902,0.30084,97943.0,97942.0,0.007]
[1739409002079,0.30084,97943.0,97941.0,0.204193]
[1739409002278,0.23,97943.0,97941.0,0.204193]
[1739409003887,0.23,97943.0,97942.0,0.007]
[1739409004278,0.30088,97943.0,97942.0,0.02296361]
[1739409004592,0.23,97943.0,97942.0,0.03096361]
[1739409005191,0.23,97943.0,97942.0,0.01696361]
[1739409005387,0.23,97943.0,97942.0,0.01796361]
[1739409005993,0.23,97943.0,97942.0,0.002]
[1739409006193,0.30088,97943.0,97942.0,0.002]
[1739409007087,0.30088,97943.0,97942.0,0.01796314]
[1739409007286,0.23,97943.0,97942.0,0.04350422]
[1739409008088,0.23,97943.0,97942.0,0.01796314]
[1739409008290,0.23,97943.0,97942.0,0.01796318]
[1739409009300,0.23,97943.0,97942.0,0.04350424]
[1739409010195,0.23,97943.0,97942.0,0.01796318]
[1739409010396,0.23,97943.0,97942.0,0.01796309]
[1739409010700,0.23,97943.0,97942.0,0.04350402]
[1739409011901,0.23,97943.0,97942.0,0.04350403]
[1739409012200,0.23,97943.0,97942.0,0.01796309]
[1739409014007,0.23,97943.0,97942.0,0.002]
[1739409014199,0.30136,97943.0,97942.0,0.002]
[1739409015892,0.30136,97943.0,97942.0,0.18454354]
[1739409016091,0.23,97943.0,97942.0,0.20050707]
[1739409016604,0.23,97943.0,97942.0,0.20050706]
[1739409019509,0.23,97943.0,97942.0,0.01796352]
[1739409020708,0.3608,97944.0,97942.0,0.01796352]
[1739409020709,0.3608,97944.0,97943.0,0.2041908]
[1739409020910,0.3608,97944.0,97943.0,0.22015428]
[1739409022106,0.3608,97944.0,97943.0,0.22215428]
[1739409022699,0.3608,97944.0,97943.0,0.24769589]
[1739409023298,0.3608,97944.0,97943.0,0.2061908]
[1739409023496,0.3608,97944.0,97943.0,0.22215431]
[1739409023702,0.3608,97944.0,97943.0,0.23173242]
[1739409024008,0.3608,97944.0,97943.0,0.24769591]
[1739409024205,0.3608,97944.0,97943.0,0.2061908]
[1739409025307,0.3608,97944.0,97943.0,0.24769591]
[1739409026113,0.3608,97944.0,97943.0,0.43023945]
[1739409027504,0.0928,97951.0,97950.0,0.2041762]
[1739409027714,0.0928,97951.0,97950.0,0.2201397]
[1739409028604,0.0928,97951.0,97950.0,0.2351397]
[1739409029011,0.0928,97951.0,97950.0,0.2421397]
[1739409029511,0.0928,97951.0,97950.0,0.2351397]
[1739409029715,0.0928,97951.0,97950.0,0.2361397]
[1739409030112,0.0928,97951.0,97950.0,0.23613879]
[1739409030308,0.0928,97951.0,97950.0,0.24626202]
[1739409031018,0.0928,97951.0,97950.0,0.23226202]
[1739409031412,0.0611,97951.0,97950.0,0.23226202]
[1739409031910,0.0303,97951.0,97950.0,0.23226202]
[1739409032105,0.3608,97955.0,97953.0,0.2041699]
[1739409032306,0.07906168,97963.0,97954.0,0.01596259]
[1739409032504,0.07906168,97963.0,97950.0,0.01212323]
[1739409032505,0.3608,97959.0,97955.0,0.01596259]
[1739409032712,0.4508,97959.0,97957.0,0.2041616]
[1739409032915,0.0321,97958.0,97957.0,0.2041616]
[1739409033106,0.2621,97958.0,97957.0,0.22012463]
[1739409034617,0.2621,97958.0,97957.0,0.22112463]
[1739409034817,0.2621,97958.0,97957.0,0.22212463]
[1739409036909,0.2621,97958.0,97957.0,0.2061616]
[1739409037617,0.2621,97958.0,97957.0,0.002]
[1739409040423,0.2621,97958.0,97957.0,0.01206124]
[1739409040615,0.23,97958.0,97957.0,0.01206124]
[1739409044008,0.23,97958.0,97957.0,0.02802357]
[1739409044415,0.23,97958.0,97957.0,0.01796236]
[1739409044810,0.23,97958.0,97957.0,0.002]
[1739409045019,0.30188,97958.0,97957.0,0.01796236]
[1739409045224,0.23,97958.0,97957.0,0.01796236]
[1739409047829,0.3608,97959.0,97958.0,0.2041596]
[1739409048023,0.43244,97959.0,97958.0,0.22012196]
[1739409048227,0.3608,97959.0,97958.0,0.22012196]
[1739409049023,0.3608,97959.0,97958.0,0.22212196]
[1739409050031,0.5608,97959.0,97958.0,0.22212196]
[1739409052035,0.5608,97959.0,97958.0,0.2061596]
[1739409052334,0.63216,97959.0,97958.0,0.2061596]
[1739409057928,0.5608,97959.0,97958.0,0.2061596]
[1739409058133,0.63196,97959.0,97958.0,0.2061596]
[1739409058536,0.63192,97959.0,97958.0,0.2061596]
[1739409059236,0.63192,97959.0,97958.0,0.24765844]
[1739409059428,0.5608,97959.0,97958.0,0.24765844]
[1739409060840,0.5608,97959.0,97958.0,0.2476582]
[1739409061334,0.5608,97959.0,97958.0,0.24765815]
[1739409062040,0.5608,97959.0,97958.0,0.22212058]
[1739409065041,0.5608,97959.0,97958.0,0.2061596]
[1739409065243,0.63228,97959.0,97958.0,0.2061596]
[1739409077051,0.63248,97959.0,97958.0,0.2061596]
[1739409084558,0.63248,97959.0,97938.0,0.3608]
[1739409084559,0.0608,97959.0,97938.0,0.3608]
[1739409084754,0.07906168,97948.0,97946.0,0.2041844]
[1739409084954,0.21,97948.0,97946.0,0.2041847]
[1739409086859,0.21,97948.0,97946.0,0.2051847]
[1739409094769,0.37098118,97950.0,97949.0,0.2041783]
[1739409095063,0.57515738,97950.0,97949.0,0.2041783]
[1739409095268,0.58098118,97950.0,97933.0,0.20436357]
[1739409095462,0.3608,97940.0,97933.0,0.00015317]
[1739409095770,0.2042066,97936.0,97933.0,0.00015317]
[1739409095963,0.4142066,97936.0,97933.0,0.00015317]
[1739409096269,0.21,97936.0,97934.0,0.2042096]
[1739409096964,0.2203286,97936.0,97934.0,0.2042096]
[1739409097466,0.21,97936.0,97934.0,0.2042096]
[1739409098162,0.2204883,97936.0,97934.0,0.2042096]
[1739409098868,0.2234883,97936.0,97934.0,0.2052096]
[1739409105168,0.4276944,97936.0,97934.0,0.001]
[1739409108377,0.3608,97935.0,97934.0,0.001]
[1739409108580,0.66148,97935.0,97934.0,0.001]
[1739409109279,0.43148,97935.0,97934.0,0.001]
[1739409110077,0.43348,97935.0,97934.0,0.001]
[1739409111180,0.43348,97935.0,97934.0,0.2052096]
[1739409111379,0.3628,97935.0,97934.0,0.2052096]
[1739409120384,0.00060001,97945.0,97944.0,0.2041887]
[1739409120686,0.03,97945.0,97944.0,0.2041887]
[1739409120986,0.03,97945.0,97944.0,0.3006887]
[1739409121180,0.03,97945.0,97944.0,0.31101443]
[1739409121788,0.032,97945.0,97944.0,0.31201443]
[1739409122484,0.3608,97952.0,97951.0,0.2041741]
[1739409122786,0.5008,97952.0,97951.0,0.2041741]
[1739409123581,0.5008,97952.0,97951.0,0.2051741]
[1739409123790,0.14,97952.0,97951.0,0.58293682]
[1739409126085,0.14,97952.0,97951.0,0.58293566]
[1739409126292,0.14,97952.0,97951.0,0.58293569]
[1739409126688,0.14,97952.0,97951.0,0.5669741]
[1739409127686,0.14,97952.0,97951.0,0.2061741]
[1739409134907,0.14,97952.0,97951.0,0.22213627]
[1739409135097,0.14,97952.0,97951.0,0.2061741]
[1739409136209,0.14,97952.0,97951.0,0.22213721]
[1739409143005,0.14,97952.0,97951.0,0.22213704]
[1739409144013,0.14,97952.0,97951.0,0.22213659]
[1739409145311,0.14,97952.0,97951.0,0.22213637]
[1739409145729,0.14,97952.0,97951.0,0.22213581]
[1739409149018,0.14,97952.0,97951.0,0.2061741]
[1739409149518,0.14,97952.0,97951.0,0.22213539]
[1739409150917,0.14,97952.0,97951.0,0.2061741]
[1739409151319,0.14,97952.0,97951.0,0.2221355]
[1739409151821,0.14,97952.0,97951.0,0.2061741]